[Event "26th Triest Festival 2024"]
[Site "Triest"]
[Date "2024.09.03"]
[Round "6.6"]
[White "Kovchan, Alexander"]
[Black "Candian, Lorenzo"]
[Result "1-0"]
[Annotator "TA"]
[ECO "B28"]
[WhiteElo "2455"]
[BlackElo "2164"]
[PlyCount "193"]
[EventDate "2024.09.02"]
[EventType "swiss"]
[EventCountry "ITA"]
[SourceTitle "playchess.com"]
[Source "ChessBase"]
[SourceQuality "1"]
[TimeControl "5400+30"]

{[%evp 16,193,38,32,44,18,29,15,19,18,37,35,79,85,77,49,36,22,36,19,13,13,21,41,9,12,54,59,102,98,97,77,146,139,129,155,231,236,235,226,240,234,231,237,238,241,241,235,241,241,241,239,241,235,247,248,246,242,254,251,274,274,279,272,272,269,269,264,258,258,258,258,258,258,258,259,308,262,836,802,1145,1133,1412,1568,1064,961,897,579,579,489,495,517,510,492,477,456,456,456,456,456,463,463,463,463,463,456,456,456,463,456,456,147,147,147,147,147,147,147,147,147,147,147,456,456,456,456,456,456,456,456,456,456,456,446,456,462,433,460,438,458,521,500,5616,4133,1614,460,460,197,1804,190,29966,29967,29967,29968,29969,29970,29974,29975,29976,29977,29977,29978,29978,29979,29979,29980,29982,29983,29983,29984,29984,29981,29982,29983,29983,29984,29984,29982,29985,29986]} 1. e4 {[%emt 0:02:27]} c5 {[%emt 0:00:49]} 2. Nf3 {[%emt 0:00:06]} a6 {[%emt 0:00:29]} 3. c3 {[%emt 0:00:26]} d5 {[%emt 0:00:05]} 4. exd5 {[%emt 0:00:08]} Qd7 {[%emt 1:31:07]} 5. d6 Qxd6 {[%emt 0:00:00]} 6. d3 {[%emt 1:30:23]} Qd5 7. d4 {[%emt 0:00:00]} e6 {[%emt 0:00:00]} 8. Be2 {[%emt 0:00:00]} Nf6 {[%emt 0:00:00]} 9. O-O {[%emt 0:00:00]} cxd4 {[%emt 0:00:00]} 10. cxd4 {[%emt 0:00:00]} (10. Nxd4 {feels hotter.} Bd6 11. Be3 O-O 12. Nd2) 10... Nc6 {[%emt 0:00:00]} 11. Bf4 {[%emt 0:00:00]} Be7 {[%emt 0:00:00] The position is equal.} 12. Nc3 {[%emt 0:00:00]} Qa5 {[%emt 0:00:00]} 13. Ne5 {[%emt 0:00:00]} Nb4 {[%emt 0:00:00]} 14. Bf3 {[%emt 0:00:00]} Nbd5 {[%emt 0:00:00]} 15. Nxd5 {[%emt 0:00:00]} Nxd5 {[%emt 0:00:00]} 16. Bg3 {[%emt 0:00:00]} O-O {[%emt 0:00:00]} 17. a3 {[%emt 0:00:00]} Rd8 {[%emt 0:00:00]} 18. Be4 {[%emt 0:00:00][%cal Oe4h7] Black must now prevent Bxh7+!} Nf6 {[%emt 0:00:00]} 19. Nc4 {[%emt 0:00:00]} Qb5 {[%emt 0:00:00]} 20. Bd3 {[%emt 0:00:00]} Nd5 {[%emt 0:00:00] Dodges Bc7} 21. Rc1 {[%emt 0:00:00]} Bf6 {[%emt 0:00:00]} 22. Be5 {[%emt 0:00:00]} Bxe5 {[%emt 0:00:00]} 23. dxe5 {[%emt 0:00:00]} Qe8 {[%emt 0:00:00]} (23... g6 $142) 24. Nd6 $36 {[%emt 0:00:00][%mdl 2048] Keeping Black busy.} Qe7 {[%emt 0:00:00]} 25. Be4 {[%emt 0:00:00] White has more active pieces.} Rxd6 {[%emt 0:00:00]} (25... Bd7 $16 26. Bxd5 (26. Nxb7 Ba4 $16) 26... exd5) 26. exd6 $18 {[%emt 0:00:00]} Qxd6 {[%emt 0:00:00]} 27. Qc2 {[%emt 0:00:00]} g6 {[%emt 0:00:00]} 28. Qc5 {[%emt 0:00:00]} Qxc5 {[%emt 0:00:00]} 29. Rxc5 {[%emt 0:00:00]} Bd7 {[%emt 0:00:00]} 30. Bxd5 {[%emt 0:00:00]} exd5 {[%emt 0:00:00]} 31. Rxd5 {[%emt 0:00:00][%mdl 4096] Endgame. KRR-KRB} Be6 {[%emt 0:00:00]} 32. Rd6 {[%emt 0:00:00]} Rc8 {[%emt 0:00:23]} 33. Rfd1 {[%emt 0:00:00]} Rc2 {[%emt 0:00:18]} 34. R6d2 {[%emt 0:00:00]} Rc5 {[%emt 0:01:40]} 35. b4 {[%emt 0:00:00]} Rc3 {[%emt 0:01:20]} 36. Rd3 {[%emt 0:00:00]} Rc7 {[%emt 0:00:24]} 37. f3 {[%emt 0:00:00]} h5 {[%emt 0:00:14]} 38. h4 {[%emt 0:00:00]} Kg7 {[%emt 0:00:39]} 39. Kf2 {[%emt 0:00:00]} a5 {[%emt 0:02:35]} 40. bxa5 {[%emt 0:00:00]} Rc5 {[%emt 0:00:07]} 41. Re3 {[%emt 0:00:00]} ({Stronger than} 41. Rb1 Bf5 42. a6 bxa6 $11) 41... Rxa5 {[%emt 0:00:13]} 42. Rb1 {[%emt 0:01:19]} b5 {[%emt 0:00:41]} 43. Rb4 {[%emt 0:00:11]} Kf6 {[%emt 0:00:35]} 44. Rc3 {[%emt 0:00:19]} Ke5 {[%emt 0:00:19]} 45. Ke3 {[%emt 0:01:00]} Kd6 {[%emt 0:02:02]} 46. Kd4 {[%emt 0:01:47]} Bc4 $2 {[%emt 0:01:12] [#]} (46... Bf5 47. Ke3 Ke7) 47. a4 $1 {[%emt 0:02:10]} Bf1 {[%emt 0:00:14]} (47... Ra8 48. axb5) 48. axb5 {[%emt 0:04:42]} Rxb5 {[%emt 0:00:12]} 49. Rxb5 {[%emt 0:00:06]} Bxb5 {[%emt 0:00:04] KR-KB} 50. Rb3 {[%emt 0:00:06]} Bf1 {[%emt 0:00:52]} 51. Rb6+ {[%emt 0:00:10]} Ke7 {[%emt 0:00:00]} 52. g3 {[%emt 0:00:09] Strongly threatening Ke5.} Kf8 {[%emt 0:00:10]} 53. Ke5 {[%emt 0:07:11]} Kg7 {[%emt 0:00:03]} 54. Kf4 {[%emt 0:00:15]} Bc4 {[%emt 0:00:44]} 55. Kg5 {[%emt 0:00:43]} Bd5 {[%emt 0:00:25]} 56. Rf6 {[%emt 0:00:51]} Be6 {[%emt 0:03:10]} 57. Rf4 {[%emt 0:00:50]} Bd5 {[%emt 0:01:10]} 58. g4 $1 {[%emt 0:01:06]} hxg4 {[%emt 0:00:04]} 59. Kxg4 {[%emt 0:00:08]} ({Less strong is} 59. fxg4 Bc6 $16) 59... Kh6 {[%emt 0:01:29]} 60. Rd4 {[%emt 0:00:02]} Be6+ {[%emt 0:00:08]} 61. Kf4 {[%emt 0:00:05]} Kg7 {[%emt 0:01:36]} 62. Rd6 {[%emt 0:01:31]} Kh6 {[%emt 0:00:21]} 63. Ke5 $2 {[%emt 0:00:33]} (63. Rd8 $18 {is more deadly.} Bb3 64. Rh8+ Kg7 65. Ra8) 63... Kh5 $16 {[%emt 0:00:28]} 64. Rd4 {[%emt 0:00:21]} Bb3 {[%emt 0:00:21]} 65. Rf4 {[%emt 0:00:52]} Be6 {[%emt 0:00:13]} 66. Kd4 {[%emt 0:00:29]} Bb3 {[%emt 0:00:37]} 67. Ke3 {[%emt 0:00:02]} Be6 {[%emt 0:00:21]} 68. Kf2 {[%emt 0:00:02]} Bb3 $2 {[%emt 0:00:36][%mdl 8192] [#] A mistake that costs the game.} (68... g5 $16 69. hxg5 Kxg5) 69. Kg3 $1 $18 {[%emt 0:00:02]} Be6 {[%emt 0:00:05]} 70. Re4 {[%emt 0:00:07]} Bb3 {[%emt 0:00:35]} 71. Re8 {[%emt 0:00:17][%cal Re8h8]} Kh6 {[%emt 0:00:09]} 72. Kf4 {[%emt 0:00:14]} Bc4 {[%emt 0:00:46]} 73. Rb8 {[%emt 0:00:43]} Bd5 {[%emt 0:02:01]} 74. Rh8+ {[%emt 0:00:15]} Kg7 {[%emt 0:00:13]} 75. Rd8 {[%emt 0:00:02]} Bb7 {[%emt 0:00:18]} 76. Rd3 {[%emt 0:01:17]} Kf6 {[%emt 0:00:13]} 77. Rb3 {[%emt 0:00:17]} Bd5 {[%emt 0:00:21]} 78. Rb5 {[%emt 0:00:09]} Bc4 {[%emt 0:02:44]} (78... Ke6 $142 79. h5 gxh5 80. Rb6+ Ke7) 79. Rc5 {[%emt 0:00:08]} Bd3 {[%emt 0:00:31]} 80. Rd5 {[%emt 0:01:55]} (80. Rc6+ $142 Kg7 81. Kg5) 80... Bc2 {[%emt 0:00:53]} 81. Rg5 {[%emt 0:00:21]} (81. Rd6+ $142 Kg7 82. Kg5) 81... Bd1 $2 {[%emt 0:01:09]} (81... Bd3 82. h5 Kg7) 82. Rc5 $2 {[%emt 0:00:08]} (82. h5 {White wants to mate with h6.} Kg7 83. Rg2) 82... Bb3 $2 {[%emt 0:01:53] [#]} (82... Kg7 $18 83. h5 gxh5 84. Rxh5 f6) 83. h5 $1 {[%emt 0:00:09] White mates.} gxh5 {[%emt 0:00:03]} 84. Rxh5 {[%emt 0:00:06]} Bc2 {[%emt 0:00:10]} 85. Rc5 {[%emt 0:00:32]} Bb1 {[%emt 0:00:07]} 86. Rc6+ {[%emt 0:00:16]} Kg7 {[%emt 0:00:29]} 87. Kg5 {[%emt 0:00:20]} Bd3 {[%emt 0:00:37]} 88. Rc7 {[%emt 0:00:17]} Bb1 {[%emt 0:01:19]} 89. f4 {[%emt 0:00:05][%cal Bf3f4,Bf4f5,Bf5f6][%mdl 32]} Ba2 {[%emt 0:00:13]} 90. f5 {[%emt 0:00:08]} Bb3 {[%emt 0:00:20]} 91. f6+ {[%emt 0:00:13]} Kh7 {[%emt 0:00:10]} 92. Rc3 {[%emt 0:00:24]} Be6 {[%emt 0:00:04]} 93. Rg3 {[%emt 0:00:50]} Kg8 {[%emt 0:00:34]} 94. Kh6+ {[%emt 0:00:26]} Kf8 {[%emt 0:00:06]} 95. Ra3 {[%emt 0:00:11]} Ke8 {[%emt 0:00:13]} 96. Kg7 {[%emt 0:00:17]} Bd5 {[%emt 0:01:00]} 97. Ra7 {[%emt 0:00:08] Weighted Error Value: White=0.11 (very precise) /Black=0.12 (very precise) .  Loses game:     	---       	Black=1      Missed win:     	White=1     	---        Mistake:       	White=1     	Black=6      Inaccurate:     	White=2     	Black=4      OK:         	White=30    	Black=25     Best:        	White=6     	Black=2      Strong:       	White=2     	---        Brilliant:      	White=1     	---} 1-0

[Event "26th Triest Festival 2024"]
[Site "Triest"]
[Date "2024.09.03"]
[Round "6.7"]
[White "Chia, Yu Zhe Ashton"]
[Black "Willems, Niels"]
[Result "1/2-1/2"]
[Annotator "TA"]
[ECO "B90"]
[WhiteElo "2224"]
[BlackElo "2384"]
[PlyCount "81"]
[EventDate "2024.09.02"]
[EventType "swiss"]
[EventCountry "ITA"]
[SourceTitle "playchess.com"]
[Source "ChessBase"]
[SourceQuality "1"]
[TimeControl "5400+30"]

{[%evp 11,81,0,16,8,0,-14,0,-27,36,32,21,38,35,26,33,-6,21,7,17,0,38,39,38,35,40,28,43,0,0,-6,0,0,0,0,0,0,0,0,0,-27,0,-40,-33,-51,-47,-47,0,-62,-56,-42,-34,-29,-35,-43,-47,-108,-98,-103,-100,-97,-92,-107,-106,-101,-101,-111,-49,-67,0,-112,0,-80]} 1. e4 {[%emt 0:02:38]} c5 {[%emt 0:00:32]} 2. Nf3 {[%emt 0:04:06]} d6 {[%emt 0:00:08]} 3. d4 {[%emt 0:00:19]} cxd4 {[%emt 0:00:05]} 4. Nxd4 {[%emt 0:00:04]} Nf6 {[%emt 0:00:07]} 5. Nc3 {[%emt 0:00:05]} a6 {[%emt 0:00:05]} 6. h3 {[%emt 0:00:07]} e5 {[%emt 0:00:05]} 7. Nf3 {[%emt 0:00:04][%cal Bd4f3,Bf3d2,Bd2c4][%mdl 32]} Be7 {[%emt 0:00:15]} 8. g4 {[%emt 0:00:32]} h6 {[%emt 0:00:06]} 9. Rg1 {[%emt 0:01:21]} (9. Be3 $5) 9... g5 {[%emt 0:00:45]} (9... b5 $11) 10. Nd2 $14 {[%emt 0:01:44]} Be6 {[%emt 0:02:20]} 11. Nc4 {[%emt 0:00:29]} b5 {[%emt 0:00:14]} 12. Ne3 {[%emt 0:00:08]} Nbd7 {[%emt 0:00:24]} 13. Ned5 {[%emt 0:07:42]} Nb6 {[%emt 0:02:49]} 14. Be3 {[%emt 0:02:12]} Nfxd5 {[%emt 0:04:27]} 15. Nxd5 {[%emt 0:01:54]} Nxd5 {[%emt 0:01:30]} 16. exd5 {[%emt 0:00:10]} Bd7 {[%emt 0:00:08][%cal Be6d7,Bd7c6,Bc6d5,Bd5e4][%mdl 32]} 17. Bd3 {[%emt 0:03:55]} b4 {[%emt 0:26:04]} 18. a3 {[%emt 0:08:37]} Qa5 {[%emt 0:01:42][%csl LRa3,LRd5]} 19. Qd2 {[%emt 0:03:35]} (19. Qf3 {is interesting.} bxa3+ 20. Ke2 a2 21. Bd2) 19... Qxd5 {[%emt 0:01:20]} 20. Qxb4 {[%emt 0:01:25] [#] Strongly threatening Be4.} a5 {[%emt 0:01:49]} 21. Qe4 {[%emt 0:03:55]} Bc6 {[%emt 0:03:00]} 22. Qxd5 {[%emt 0:00:06]} Bxd5 {[%emt 0:00:02]} 23. Bb5+ {[%emt 0:00:49]} Kf8 {[%emt 0:00:12]} 24. O-O-O {[%emt 0:00:09]} Be4 {[%emt 0:06:29]} 25. c3 {[%emt 0:03:16]} Kg7 {[%emt 0:19:22]} 26. Bc4 {[%emt 0:00:53]} a4 {[%emt 0:00:18]} 27. Bd5 {[%emt 0:00:21]} Bxd5 {[%emt 0:00:01]} 28. Rxd5 {[%emt 0:00:01] [#]} f5 {[%emt 0:00:10]} 29. Bb6 {[%emt 0:10:03]} (29. gxf5 $11 Kf6 30. Rg4) 29... Ra6 $15 {[%emt 0:01:56]} 30. Ba5 {[%emt 0:00:09]} h5 {[%emt 0:01:02]} 31. gxf5 {[%emt 0:02:05]} Kf6 {[%emt 0:00:24]} 32. Bb4 {[%emt 0:07:30]} Kxf5 {[%emt 0:00:11]} 33. f3 {[%emt 0:00:59]} ({White should try} 33. Kd1 $15) 33... Ke6 {[%emt 0:00:54]} 34. Rd3 {[%emt 0:00:28]} Rf8 {[%emt 0:01:03]} 35. b3 {[%emt 0:02:16]} axb3 {[%emt 0:03:40]} 36. Kb2 {[%emt 0:00:06]} Rf4 {[%emt 0:00:22]} 37. Kxb3 {[%emt 0:00:41]} Rh4 {[%emt 0:01:26]} 38. Rh1 {[%emt 0:00:06]} Bf6 {[%emt 0:04:45]} (38... Ra7 $17 39. c4 Rc7) 39. Rhd1 {[%emt 0:15:18]} Be7 {[%emt 0:00:10]} 40. Rh1 {[%emt 0:00:01]} Bf6 {[%emt 0:01:43]} 41. Rhd1 {[%emt 0:00:07] Weighted Error Value: White=0.13 (very precise) /Black=0.14 (very precise) .  Mistake:       	White=2     	Black=3      Inaccurate:     	White=5     	Black=3      OK:         	White=16    	Black=15     Best:        	White=2     	Black=1} 1/2-1/2

[Event "26th Triest Festival 2024"]
[Site "Triest"]
[Date "2024.09.03"]
[Round "6.8"]
[White "Kanyamarala, Tarun"]
[Black "Fischer, Daniel"]
[Result "0-1"]
[Annotator "TA"]
[ECO "E53"]
[WhiteElo "2361"]
[BlackElo "2349"]
[PlyCount "93"]
[EventDate "2024.09.02"]
[EventType "swiss"]
[EventCountry "ITA"]
[SourceTitle "playchess.com"]
[Source "ChessBase"]
[SourceQuality "1"]
[TimeControl "5400+30"]

{[%evp 28,93,73,51,116,71,112,54,51,24,78,35,21,0,0,24,118,-16,0,-138,-125,-128,-103,-118,-41,-6,-23,-45,0,0,0,0,110,142,141,142,141,141,211,0,0,-126,-62,-82,-85,-96,-98,-347,-304,-539,-514,-650,-647,-642,-620,-586,-565,-29981,-29982,-29982,-29983,-29983,-29984,-29984,-29985,-29985,-29986,-29985]} 1. d4 {[%emt 0:00:02]} Nf6 {[%emt 0:00:05]} 2. c4 {[%emt 0:00:13]} e6 {[%emt 0:00:05]} 3. Nc3 {[%emt 0:00:07]} Bb4 {[%emt 0:00:04]} 4. e3 {[%emt 0:00:08]} O-O {[%emt 0:00:13]} 5. Bd3 {[%emt 0:00:11]} d5 {[%emt 0:00:18]} 6. a3 {[%emt 0:00:12]} Bxc3+ {[%emt 0:00:07]} 7. bxc3 {[%emt 0:00:08]} dxc4 {[%emt 0:00:13]} 8. Bxc4 {[%emt 0:00:11]} c5 {[%emt 0:00:08]} 9. Nf3 {[%emt 0:00:10]} Qc7 {[%emt 0:00:27]} 10. Be2 {[%emt 0:00:18]} Nc6 {[%emt 0:02:21] E53: Nimzo-Indian: Rubinstein: Main Line (4...0-0 5 Nf3 d5 6 Bd3 c5 7 0-0).} 11. Bb2 {[%emt 0:00:13]} Rd8 {[%emt 0:02:09]} 12. Qc2 {[%emt 0:00:17]} e5 {[%emt 0:06:54]} 13. dxe5 {[%emt 0:02:34]} Nxe5 {[%emt 0:00:59]} 14. c4 {[%emt 0:00:21]} Ned7 $146 {[%emt 0:02:43]} (14... Ng6 $11) ({Predecessor:} 14... Nxf3+ 15. Bxf3 Qa5+ 16. Bc3 Qa6 17. O-O Qxc4 18. Rfc1 h6 19. Ba5 Qxc2 20. Rxc2 Re8 21. Rxc5 Ne4 22. Rc7 Rb8 23. Rb1 Ng5 24. h4 {½-½ Kozak,A (2552)-Navara,D (2685) EU-ch 23rd Vrnjacka Banja 2023 (4)}) 15. g4 {[%emt 0:29:10]} Ne8 {[%emt 0:18:33]} (15... Nxg4 $14 16. Rg1 Nde5 (16... Nxh2 17. Rxg7+ Kf8 18. Rxf7+ Ke8 19. Qe4+)) 16. h4 {[%emt 0:11:24]} Nf8 {[%emt 0:01:03]} 17. Ne5 {[%emt 0:04:23]} (17. Rg1 $1 $16) 17... Qe7 $14 {[%emt 0:07:24]} 18. g5 {[%emt 0:05:48]} Be6 {[%emt 0:07:39]} (18... Ng6 $11 19. Qc3 Rd6) 19. f4 {[%emt 0:09:19]} Ng6 {[%emt 0:15:13]} 20. h5 {[%emt 0:09:19]} Nxe5 {[%emt 0:00:10]} 21. Bxe5 {[%emt 0:00:06]} Qd7 {[%emt 0:01:52]} (21... f6 $11 22. gxf6 gxf6) 22. Bb2 {[%emt 0:07:08]} (22. Rg1 $16) 22... Bg4 {[%emt 0:03:24]} 23. Qc3 {[%emt 0:02:48]} (23. Be5 $11 {keeps the balance.}) 23... Bxe2 {[%emt 0:04:41]} 24. Kxe2 {[%emt 0:00:05]} Qg4+ {[%emt 0:00:30]} 25. Kf2 {[%emt 0:00:21]} Qf5 {[%emt 0:00:34]} ({Better is} 25... Rd6 $1 $17 {...Rad8 would now be deadly.} 26. Rag1 Qe6) 26. Rad1 $15 {[%emt 0:11:21]} f6 {[%emt 0:04:43]} 27. Rhg1 $1 {[%emt 0:01:01]} Nd6 {[%emt 0:05:16]} 28. Rxd6 $1 {[%emt 0:00:29]} Rxd6 {[%emt 0:00:05]} 29. gxf6 {[%emt 0:00:05]} Rd7 {[%emt 0:02:45]} (29... Qxh5 $11 {remains equal.} 30. f7+ (30. fxg7 $2 Qh4+ 31. Kf3 Qh3+ 32. Kf2 Rad8 $19) (30. Rxg7+ Kf8 $11) 30... Kxf7 31. Rxg7+ Kf8) 30. Rg5 $16 {[%emt 0:02:01]} (30. fxg7 $2 Qxh5 31. Bc1 Qh2+ 32. Rg2 Qh4+ 33. Ke2 Re8 $19) (30. Rxg7+ Rxg7 31. fxg7 Qxh5 $17) 30... Qe6 {[%emt 0:01:29]} 31. f5 {[%emt 0:04:17]} (31. fxg7 Qh3 32. Rd5 (32. Rxc5 $2 Qh2+ 33. Kf3 Rd2 $19) 32... Qh2+ 33. Kf1 Qh1+ 34. Kf2 Rxd5 35. cxd5 Qxd5 $11) (31. Rxg7+ Rxg7 32. fxg7 Rd8 $17) 31... Qe8 {[%emt 0:01:53]} 32. h6 {[%emt 0:00:06]} (32. fxg7 $6 Rad8 33. f6 Rd2+ 34. Kf3 Qc6+ 35. Rd5 R2xd5 36. cxd5 Qxd5+ 37. Kf4 Qxh5 38. Qc4+ Rd5 $11) (32. Rxg7+ $6 Rxg7 33. fxg7 Qxh5 $11) 32... Rf7 {[%emt 0:00:52]} (32... Kf8 $16) 33. Rxg7+ $2 {[%emt 0:01:37]} ({Resist} 33. hxg7 Qe4) ({White should play} 33. Qc2 $1 $18 {[%cal Oe3e4] e4! is the strong threat.} Qc6 34. Rxg7+ (34. fxg7 $2 {is the wrong capture.} Qxh6 35. Rg2 Re8 $19) (34. hxg7 Re8 $16) 34... Rxg7 35. hxg7) 33... Rxg7 $11 {[%emt 0:00:11]} 34. f7+ {[%emt 0:01:01]} (34. hxg7 $11 a6 35. Qe5 Qxe5 36. Bxe5) 34... Qxf7 $17 {[%emt 0:00:05]} 35. Qxg7+ {[%emt 0:00:05]} Qxg7 {[%emt 0:00:04]} 36. hxg7 {[%emt 0:00:12]} Rd8 {[%emt 0:04:40]} 37. Ke2 $2 {[%emt 0:00:48]} (37. Bf6 $17 Rd6 38. Be5) 37... h5 {[%emt 0:01:23]} 38. e4 $2 {[%emt 0:00:30]} (38. Bf6 {was called for.} Rd6 39. Be7) 38... Kf7 {[%emt 0:02:12]} 39. e5 {[%emt 0:00:51]} Kxg7 {[%emt 0:00:32]} 40. e6+ {[%emt 0:00:05]} Rd4 $1 {[%emt 0:02:52]} 41. Ke3 {[%emt 0:00:56] [#]} h4 $1 {[%emt 0:00:13]} 42. Bxd4+ {[%emt 0:00:29]} cxd4+ {[%emt 0:00:02]} 43. Kxd4 {[%emt 0:00:16] [#]} h3 $1 {[%emt 0:00:07]} 44. Ke5 {[%emt 0:00:21]} h2 {[%emt 0:00:05]} 45. f6+ {[%emt 0:00:07]} Kf8 {[%emt 0:00:12]} 46. e7+ {[%emt 0:01:24]} Kf7 {[%emt 0:00:07]} 47. Kd4 {[%emt 0:01:02]} 0-1

[Event "26th Triest Festival 2024"]
[Site "Triest"]
[Date "2024.09.03"]
[Round "6.9"]
[White "Bardone, Lorenzo"]
[Black "Tiviakov, Sergei"]
[Result "0-1"]
[Annotator "TA"]
[ECO "E16"]
[WhiteElo "2234"]
[BlackElo "2531"]
[PlyCount "138"]
[EventDate "2024.09.02"]
[EventType "swiss"]
[EventCountry "ITA"]
[SourceTitle "playchess.com"]
[Source "ChessBase"]
[SourceQuality "1"]
[TimeControl "5400+30"]

{[%evp 24,138,14,0,0,0,4,-14,0,0,0,0,-21,-16,-9,-30,0,0,1,0,0,0,5,12,5,17,20,12,27,8,16,0,0,-17,10,0,0,0,11,0,31,0,0,-77,-21,-125,-128,-125,-125,-131,-131,-131,-126,-125,-117,-179,-186,-185,-184,-179,-154,-190,-183,-185,-160,-205,-198,-200,-197,-211,-210,-175,-187,-207,-182,-189,-55,-307,-329,-336,-297,-408,-408,-332,-254,-547,-547,-540,-495,-243,-244,-478,-440,-635,-635,-628,-603,-1059,-1059,-1075,-925,-7231,-7928,-29963,-29965,-29968,-29966,-29963,-29966,-29976,-29977,-29980,-29981,-29980,-29981,-29979,-29980]} 1. d4 {[%emt 0:00:03]} Nf6 {[%emt 0:01:10]} 2. c4 {[%emt 0:00:10]} e6 {[%emt 0:00:04]} 3. g3 {[%emt 0:00:07]} d5 {[%emt 0:00:06]} 4. Bg2 {[%emt 0:00:05]} Bb4+ {[%emt 0:00:05]} 5. Nd2 {[%emt 0:00:08]} O-O {[%emt 0:00:07]} 6. Ngf3 {[%emt 0:00:19]} b6 {[%emt 0:00:09]} 7. O-O {[%emt 0:00:17]} Bb7 {[%emt 0:00:06]} 8. a3 {[%emt 0:00:09]} Bd6 {[%emt 0:01:31] E16: Queen's Indian: 4 g3 Bb7 5 Bg2 Bb4+.} 9. b4 {[%emt 0:00:50]} dxc4 {[%emt 0:02:27]} 10. Nxc4 {[%emt 0:00:32]} Nbd7 {[%emt 0:00:07]} 11. Nxd6 {[%emt 0:06:35]} cxd6 {[%emt 0:00:02]} 12. Bf4 {[%emt 0:00:58]} Qe7 {[%emt 0:00:35]} 13. Rc1 {[%emt 0:00:53]} b5 $146 {[%emt 0:03:34]} ({Predecessor:} 13... Rac8 14. Qa4 a6 15. Nd2 Nd5 16. Ne4 Nxf4 17. gxf4 d5 18. Ng5 Qd6 19. e3 b5 {0-1 Ansh,M (2171)-Matinian,N (2407) Titled Tuesday intern op 7th Mar Late blitz 2023 (4)}) 14. Qd3 {[%emt 0:13:51]} Rfb8 {[%emt 0:04:04]} 15. Nd2 {[%emt 0:03:42]} Bxg2 {[%emt 0:02:24]} 16. Kxg2 {[%emt 0:00:06]} Nd5 {[%emt 0:00:09]} 17. Rc6 {[%emt 0:03:26]} Nxf4+ {[%emt 0:02:55]} 18. gxf4 {[%emt 0:00:05]} Nb6 {[%emt 0:00:15]} 19. Rfc1 {[%emt 0:22:19]} a6 {[%emt 0:01:55]} 20. Ne4 {[%emt 0:05:34]} Nc4 {[%emt 0:03:42]} 21. d5 {[%emt 0:00:41]} h6 {[%emt 0:01:17]} 22. Nd2 {[%emt 0:10:27]} exd5 {[%emt 0:07:16]} 23. Qxd5 {[%emt 0:00:08]} Qxe2 {[%emt 0:02:34]} 24. Nxc4 {[%emt 0:00:06]} bxc4 {[%emt 0:00:03]} 25. R6xc4 {[%emt 0:00:19]} Re8 {[%emt 0:00:30]} 26. Qf3 {[%emt 0:03:15]} Qe6 {[%emt 0:02:23]} 27. Qh3 {[%emt 0:02:03]} Qf6 {[%emt 0:02:03]} 28. Qc3 {[%emt 0:00:22]} Qe7 {[%emt 0:00:21]} 29. Rc7 {[%emt 0:01:16]} Qe6 {[%emt 0:01:27]} 30. Qf3 {[%emt 0:02:33]} d5 {[%emt 0:11:34]} 31. f5 {[%emt 0:03:52]} Qf6 {[%emt 0:00:21]} 32. Qxd5 {[%emt 0:07:12]} Rad8 {[%emt 0:00:07]} 33. Qb3 {[%emt 0:00:44]} (33. Qf3 $11) 33... Re5 {[%emt 0:05:11]} (33... Qg5+ $17 34. Qg3 Qxf5) 34. R1c6 {[%emt 0:02:56]} (34. Rc8 $11) 34... Qxf5 $17 {[%emt 0:01:27]} 35. Qf3 {[%emt 0:00:11]} Qg5+ {[%emt 0:06:19]} 36. Qg3 {[%emt 0:00:03]} Rd3 {[%emt 0:01:25]} 37. Qxg5 {[%emt 0:01:11]} Rxg5+ {[%emt 0:00:05]} 38. Kf1 {[%emt 0:00:04]} Rxa3 {[%emt 0:00:03]} 39. Ra7 {[%emt 0:01:11]} (39. Rc5 $17 {was worth a try.}) 39... Ra1+ $19 {[%emt 0:00:33]} 40. Ke2 {[%emt 0:00:08]} Ra2+ $1 {[%emt 0:00:03]} 41. Ke3 {[%emt 0:01:14]} Re5+ {[%emt 0:01:14]} 42. Kd4 {[%emt 0:04:44]} Rf5 {[%emt 0:00:20]} 43. Rcxa6 {[%emt 0:01:04]} Raxf2 {[%emt 0:00:11]} 44. Ra2 {[%emt 0:00:21]} R2f4+ {[%emt 0:03:04]} 45. Kc3 {[%emt 0:00:20]} Rh4 $1 {[%emt 0:10:18]} 46. Kb3 {[%emt 0:00:20]} Rb5 $1 {[%emt 0:00:14]} 47. R7a4 {[%emt 0:00:34]} g5 {[%emt 0:00:44]} 48. Rc2 {[%emt 0:02:32]} Kg7 {[%emt 0:00:22]} 49. Rb2 {[%emt 0:01:53]} Kg6 {[%emt 0:01:41]} ({Black should play} 49... Rb6 $19 {And now ...Kg6 would win.} 50. Kc3 Rf6) 50. Ka3 $2 {[%emt 0:00:08][%mdl 8192]} (50. Ra6+ $1 $15 f6 51. Ka4) 50... Rh3+ $19 {[%emt 0:02:38]} 51. Ka2 {[%emt 0:00:01]} g4 {[%emt 0:01:51]} 52. Ra5 {[%emt 0:00:53]} Rxa5+ {[%emt 0:00:29]} 53. bxa5 {[%emt 0:00:04]} Rh5 {[%emt 0:00:02]} 54. Rb6+ {[%emt 0:00:29]} f6 {[%emt 0:00:02]} 55. a6 {[%emt 0:00:25] [#]} Ra5+ $1 {[%emt 0:02:22]} ({Worse is} 55... Rxh2+ 56. Ka3 Rh1 57. Kb2 $11) 56. Kb3 {[%emt 0:00:01] [#]} h5 $1 {[%emt 0:00:04]} 57. Rc6 $2 {[%emt 0:00:46]} (57. Rd6) 57... h4 $19 {[%emt 0:02:43]} 58. Rc4 {[%emt 0:00:36]} (58. Rd6 $142 h3 59. Rd4 Rxa6 60. Rxg4+ Kh5 61. Rg3) 58... Rxa6 $19 {[%emt 0:00:48]} 59. Rxg4+ {[%emt 0:00:08]} Kh5 {[%emt 0:00:01]} 60. Rg2 {[%emt 0:02:44]} Rc6 {[%emt 0:00:49]} 61. h3 {[%emt 0:01:21]} f5 {[%emt 0:00:06]} 62. Kb4 {[%emt 0:00:27]} Rc1 {[%emt 0:02:24]} 63. Rf2 {[%emt 0:00:27]} Kg5 {[%emt 0:00:04]} 64. Rf3 {[%emt 0:00:31]} f4 {[%emt 0:02:24]} 65. Kb3 {[%emt 0:00:03]} Kf5 {[%emt 0:00:09]} 66. Kb2 {[%emt 0:02:33]} Rc8 {[%emt 0:00:11]} 67. Ka2 {[%emt 0:00:00]} Ke4 {[%emt 0:00:07]} 68. Rb3 {[%emt 0:00:00]} f3 {[%emt 0:00:24]} 69. Rb4+ {[%emt 0:00:00]} Ke5 {[%emt 0:18:45]} 0-1